[Event "*** SCC Grand Prix: Titled Tuesday Blitz"]
[Site "Chess.com"]
[Date "2020.09.08"]
[Round "2"]
[White "romulocardoso"]
[Black "garicradomir"]
[Result "0-1"]
[WhiteElo "2032"]
[BlackElo "2375"]
[TimeControl "180+1"]
[EndTime "10:17:45 PDT"]
[Termination "garicradomir won by resignation"]

1. e4 {[%clk 0:03:00.9]} 1... c5 {[%clk 0:02:58.6]} 2. Nf3 {[%clk 0:03:00.5]}
2... Nc6 {[%clk 0:02:58.7]} 3. d4 {[%clk 0:03:00.5]} 3... cxd4 {[%clk
0:02:58.9]} 4. Nxd4 {[%clk 0:03:01.4]} 4... Qc7 {[%clk 0:02:59]} 5. Nc3 {[%clk
0:03:01.6]} 5... e6 {[%clk 0:02:57.8]} 6. Ndb5 {[%clk 0:02:59.1]} 6... Qb8
{[%clk 0:02:56.3]} 7. Be3 {[%clk 0:02:57.7]} 7... a6 {[%clk 0:02:56.2]} 8. Bb6
{[%clk 0:02:52.2]} 8... axb5 {[%clk 0:02:56.1]} 9. Nxb5 {[%clk 0:02:53.1]} 9...
Ra4 {[%clk 0:02:54]} 10. Nc7+ {[%clk 0:02:52.4]} 10... Ke7 {[%clk 0:02:43.2]}
11. Bc5+ {[%clk 0:02:52.4]} 11... Kd8 {[%clk 0:02:43]} 12. Bb6 {[%clk
0:02:52.1]} 12... Rxe4+ {[%clk 0:02:30.3]} 13. Be2 {[%clk 0:02:50.6]} 13... Qxc7
{[%clk 0:01:54.5]} 14. Bxc7+ {[%clk 0:02:51.5]} 14... Kxc7 {[%clk 0:01:55.4]}
15. O-O {[%clk 0:02:50.7]} 15... Nf6 {[%clk 0:01:53.6]} 16. Bf3 {[%clk
0:02:49.7]} 16... Rd4 {[%clk 0:01:51.4]} 17. Qe2 {[%clk 0:02:47.5]} 17... d5
{[%clk 0:01:26.6]} 18. c3 {[%clk 0:02:46.3]} 18... Rc4 {[%clk 0:01:25.2]} 19.
Rac1 {[%clk 0:02:30.4]} 19... Bd6 {[%clk 0:01:20.9]} 20. b3 {[%clk 0:02:29.5]}
20... Rc5 {[%clk 0:01:20.7]} 21. b4 {[%clk 0:02:27.1]} 21... Rc4 {[%clk
0:01:19.7]} 22. Qd2 {[%clk 0:02:27.4]} 22... Bf4 {[%clk 0:01:15.5]} 23. Qd3
{[%clk 0:02:27.5]} 23... Ne5 {[%clk 0:01:11]} 24. Qc2 {[%clk 0:02:22.7]} 24...
Bxc1 {[%clk 0:01:08.7]} 25. Be2 {[%clk 0:02:21.9]} 25... Bh6 {[%clk 0:01:01.9]}
26. Bxc4 {[%clk 0:02:21.5]} 26... Nxc4 {[%clk 0:01:01.1]} 27. a4 {[%clk
0:02:19.4]} 27... Bd7 {[%clk 0:01:00.2]} 28. b5 {[%clk 0:02:17.7]} 28... b6
{[%clk 0:00:58.6]} 29. Ra1 {[%clk 0:02:16.8]} 29... Ra8 {[%clk 0:00:57.2]} 30.
h3 {[%clk 0:02:13.8]} 30... Ne4 {[%clk 0:00:55.4]} 31. f3 {[%clk 0:02:12.3]}
31... Nc5 {[%clk 0:00:54.3]} 32. Qxh7 {[%clk 0:02:11.6]} 32... Nxa4 {[%clk
0:00:50.3]} 33. Qc2 {[%clk 0:02:11]} 33... Bxb5 {[%clk 0:00:42.9]} 34. g4 {[%clk
0:02:11]} 34... Be3+ {[%clk 0:00:40.3]} 35. Kg2 {[%clk 0:02:09.7]} 35... Bf4
{[%clk 0:00:39.8]} 36. Qh7 {[%clk 0:02:09.3]} 36... Be5 {[%clk 0:00:38.3]} 37.
Qh5 {[%clk 0:02:05.1]} 37... Be8 {[%clk 0:00:32.8]} 38. Qg5 {[%clk 0:01:55.5]}
38... Bf6 {[%clk 0:00:25]} 39. Qf4+ {[%clk 0:01:54.3]} 39... e5 {[%clk
0:00:24.7]} 40. Qf5 {[%clk 0:01:53.6]} 40... Bd7 {[%clk 0:00:24.1]} 41. Qh5
{[%clk 0:01:53.8]} 41... Be6 {[%clk 0:00:18.5]} 42. g5 {[%clk 0:01:50.8]} 42...
Be7 {[%clk 0:00:13.9]} 43. h4 {[%clk 0:01:50.8]} 43... g6 {[%clk 0:00:13.1]} 44.
Qh7 {[%clk 0:01:50.6]} 44... Rd8 {[%clk 0:00:11.3]} 45. Rxa4 {[%clk 0:01:49.2]}
45... Ne3+ {[%clk 0:00:10.4]} 46. Kf2 {[%clk 0:01:48.5]} 46... d4 {[%clk
0:00:11.3]} 47. Ra7+ {[%clk 0:01:47.7]} 47... Kd6 {[%clk 0:00:11.1]} 48. cxd4
{[%clk 0:01:45.2]} 48... exd4 {[%clk 0:00:10.7]} 49. Qg7 {[%clk 0:01:45.3]}
49... Nf5 {[%clk 0:00:09.7]} 50. Qh7 {[%clk 0:01:45]} 50... Kd5 {[%clk
0:00:09.1]} 51. h5 {[%clk 0:01:39.5]} 51... gxh5 {[%clk 0:00:07.8]} 52. Qxh5
{[%clk 0:01:38.7]} 52... Bc5 {[%clk 0:00:07.8]} 53. Qg4 {[%clk 0:01:38]} 53...
d3+ {[%clk 0:00:07.4]} 54. Ke1 {[%clk 0:01:38]} 54... Kc6 {[%clk 0:00:07.7]} 55.
Qe4+ {[%clk 0:01:38]} 55... Bd5 {[%clk 0:00:06.6]} 56. Qxf5 {[%clk 0:01:38.2]}
56... d2+ {[%clk 0:00:05.7]} 57. Kxd2 {[%clk 0:01:38.1]} 57... Be4+ {[%clk
0:00:03.5]} 58. Qd7+ {[%clk 0:01:38.3]} 58... Rxd7+ {[%clk 0:00:03.5]} 59. Rxd7
{[%clk 0:01:39.2]} 59... Kxd7 {[%clk 0:00:04.2]} 60. fxe4 {[%clk 0:01:40.1]}
60... Ke6 {[%clk 0:00:04.6]} 61. Kd3 {[%clk 0:01:40.4]} 61... Ke5 {[%clk
0:00:04.8]} 62. g6 {[%clk 0:01:41.3]} 62... fxg6 {[%clk 0:00:04.4]} 63. Kc4
{[%clk 0:01:41.6]} 63... g5 {[%clk 0:00:05.3]} 64. Kb5 {[%clk 0:01:42.5]} 64...
g4 {[%clk 0:00:06.2]} 65. Kc4 {[%clk 0:01:43.4]} 65... g3 {[%clk 0:00:07.1]} 66.
Kd3 {[%clk 0:01:44.3]} 66... g2 {[%clk 0:00:08]} 67. Ke2 {[%clk 0:01:45.2]}
67... g1=Q {[%clk 0:00:08.2]} 0-1

[Event "*** SCC Grand Prix: Titled Tuesday Blitz"]
[Site "Chess.com"]
[Date "2020.09.08"]
[Round "2"]
[White "Orest_Vovk"]
[Black "JonahWillow"]
[Result "1-0"]
[WhiteElo "2492"]
[BlackElo "2690"]
[TimeControl "180+1"]
[EndTime "10:17:46 PDT"]
[Termination "Orest_Vovk won by checkmate"]

1. h4 {[%clk 0:03:00.9]} 1... c5 {[%clk 0:02:55.7]} 2. h5 {[%clk 0:03:00.6]}
2... Nc6 {[%clk 0:02:54.6]} 3. Nc3 {[%clk 0:02:57.6]} 3... d5 {[%clk 0:02:53.3]}
4. e4 {[%clk 0:02:57.2]} 4... d4 {[%clk 0:02:51.6]} 5. Nce2 {[%clk 0:02:56.6]}
5... e5 {[%clk 0:02:51.2]} 6. Ng3 {[%clk 0:02:56.1]} 6... h6 {[%clk 0:02:49.8]}
7. Bc4 {[%clk 0:02:55.5]} 7... Nf6 {[%clk 0:02:45.3]} 8. d3 {[%clk 0:02:55]}
8... b5 {[%clk 0:02:43]} 9. Bb3 {[%clk 0:02:53.8]} 9... Na5 {[%clk 0:02:38.8]}
10. Bd2 {[%clk 0:02:48.6]} 10... Nxb3 {[%clk 0:02:36.6]} 11. axb3 {[%clk
0:02:49.5]} 11... Bd6 {[%clk 0:02:26.2]} 12. Nf3 {[%clk 0:02:47.2]} 12... Bg4
{[%clk 0:02:24.5]} 13. Qb1 {[%clk 0:02:43.4]} 13... Bxf3 {[%clk 0:02:11.2]} 14.
gxf3 {[%clk 0:02:42.9]} 14... Qd7 {[%clk 0:02:12.1]} 15. Ra6 {[%clk 0:02:39.6]}
15... O-O {[%clk 0:01:49.3]} 16. Bxh6 {[%clk 0:02:31.8]} 16... gxh6 {[%clk
0:01:27.8]} 17. Nf5 {[%clk 0:02:29.8]} 17... Ne8 {[%clk 0:01:14.8]} 18. Qc1
{[%clk 0:02:01.6]} 18... Qe6 {[%clk 0:00:50.9]} 19. Rg1+ {[%clk 0:01:06.2]}
19... Kh7 {[%clk 0:00:50.2]} 20. Ke2 {[%clk 0:00:59.8]} 20... Qf6 {[%clk
0:00:35]} 21. Rg4 {[%clk 0:00:40.2]} 21... Rg8 {[%clk 0:00:28.5]} 22. Rg3 {[%clk
0:00:24]} 22... Rxg3 {[%clk 0:00:27.2]} 23. fxg3 {[%clk 0:00:24.9]} 23... Rc8
{[%clk 0:00:17.9]} 24. Rxa7 {[%clk 0:00:19.6]} 24... Rc7 {[%clk 0:00:18.5]} 25.
Ra8 {[%clk 0:00:19.2]} 25... Ng7 {[%clk 0:00:18.3]} 26. g4 {[%clk 0:00:17.8]}
26... Nxf5 {[%clk 0:00:17.4]} 27. exf5 {[%clk 0:00:18.4]} 27... c4 {[%clk
0:00:14.7]} 28. Qa1 {[%clk 0:00:12.9]} 28... cxd3+ {[%clk 0:00:13.4]} 29. Kxd3
{[%clk 0:00:12]} 29... Qg5 {[%clk 0:00:13.6]} 30. Qe1 {[%clk 0:00:11.4]} 30...
Qf4 {[%clk 0:00:11.1]} 31. Qe4 {[%clk 0:00:10.9]} 31... Qh2 {[%clk 0:00:08.9]}
32. f6# {[%clk 0:00:10.6]} 1-0

[Event "*** SCC Grand Prix: Titled Tuesday Blitz"]
[Site "Chess.com"]
[Date "2020.09.08"]
[Round "2"]
[White "fabianvivasz"]
[Black "azikom"]
[Result "0-1"]
[WhiteElo "2301"]
[BlackElo "2642"]
[TimeControl "180+1"]
[EndTime "10:17:47 PDT"]
[Termination "azikom won by checkmate"]

1. e4 {[%clk 0:03:00.9]} 1... c5 {[%clk 0:02:59.5]} 2. Nc3 {[%clk 0:02:54]} 2...
e6 {[%clk 0:02:59.7]} 3. Nf3 {[%clk 0:02:49.4]} 3... a6 {[%clk 0:02:58]} 4. d4
{[%clk 0:02:49.5]} 4... cxd4 {[%clk 0:02:57.9]} 5. Nxd4 {[%clk 0:02:50.4]} 5...
b5 {[%clk 0:02:58.2]} 6. Bd3 {[%clk 0:02:50.2]} 6... Bb7 {[%clk 0:02:56.7]} 7.
O-O {[%clk 0:02:49]} 7... Nc6 {[%clk 0:02:55.8]} 8. Nxc6 {[%clk 0:02:40.1]} 8...
Bxc6 {[%clk 0:02:55.1]} 9. Re1 {[%clk 0:02:10]} 9... Ne7 {[%clk 0:02:51.3]} 10.
Bg5 {[%clk 0:01:50.6]} 10... Qb8 {[%clk 0:02:47.5]} 11. e5 {[%clk 0:01:41.3]}
11... Ng6 {[%clk 0:02:45.9]} 12. Bxg6 {[%clk 0:01:23.1]} 12... hxg6 {[%clk
0:02:44.7]} 13. Qd4 {[%clk 0:01:19.5]} 13... b4 {[%clk 0:02:34.3]} 14. Ne4
{[%clk 0:01:14.2]} 14... Qb5 {[%clk 0:02:28.2]} 15. Nd6+ {[%clk 0:01:04.5]}
15... Bxd6 {[%clk 0:02:03.5]} 16. Qxd6 {[%clk 0:01:05.4]} 16... f6 {[%clk
0:02:03.5]} 17. exf6 {[%clk 0:00:57.4]} 17... gxf6 {[%clk 0:02:02.6]} 18. Bxf6
{[%clk 0:00:56.5]} 18... Rh7 {[%clk 0:02:02.9]} 19. Rad1 {[%clk 0:00:06.4]}
19... Kf7 {[%clk 0:01:53.5]} 20. Be5 {[%clk 0:00:02.1]} 20... Kg8 {[%clk
0:01:50.7]} 21. Rd4 {[%clk 0:00:01.7]} 21... Qa4 {[%clk 0:01:21.5]} 22. Rg4
{[%clk 0:00:01.7]} 22... Qxc2 {[%clk 0:01:18.8]} 23. h4 {[%clk 0:00:02.1]} 23...
Rf8 {[%clk 0:01:14.9]} 24. Rf1 {[%clk 0:00:02.2]} 24... a5 {[%clk 0:00:53.6]}
25. h5 {[%clk 0:00:01.7]} 25... Rxh5 {[%clk 0:00:51.7]} 26. Qe7 {[%clk
0:00:01.8]} 26... Rh7 {[%clk 0:00:50.9]} 27. Qg5 {[%clk 0:00:01.5]} 27... Qf5
{[%clk 0:00:46.5]} 28. Qxg6+ {[%clk 0:00:01.2]} 28... Qxg6 {[%clk 0:00:46]} 29.
Rxg6+ {[%clk 0:00:02.1]} 29... Kf7 {[%clk 0:00:46.3]} 30. Rg5 {[%clk 0:00:02.9]}
30... Ke7 {[%clk 0:00:38.9]} 31. Bc7 {[%clk 0:00:03]} 31... a4 {[%clk
0:00:32.1]} 32. Ba5 {[%clk 0:00:03.1]} 32... Rf4 {[%clk 0:00:30.2]} 33. g3
{[%clk 0:00:02.6]} 33... Rh1# {[%clk 0:00:28.7]} 0-1

[Event "*** SCC Grand Prix: Titled Tuesday Blitz"]
[Site "Chess.com"]
[Date "2020.09.08"]
[Round "2"]
[White "DenLaz"]
[Black "SilviusTiberius"]
[Result "1-0"]
[WhiteElo "2742"]
[BlackElo "2494"]
[TimeControl "180+1"]
[EndTime "10:17:51 PDT"]
[Termination "DenLaz won by checkmate"]

1. e4 {[%clk 0:03:00.9]} 1... c5 {[%clk 0:02:55.5]} 2. Nf3 {[%clk 0:03:00.3]}
2... Nc6 {[%clk 0:02:52.7]} 3. Bb5 {[%clk 0:02:52.7]} 3... g6 {[%clk 0:02:52.5]}
4. Bxc6 {[%clk 0:02:51.7]} 4... dxc6 {[%clk 0:02:53.4]} 5. d3 {[%clk 0:02:50.2]}
5... Bg7 {[%clk 0:02:53.5]} 6. h3 {[%clk 0:02:50.5]} 6... Nf6 {[%clk 0:02:50.9]}
7. Nc3 {[%clk 0:02:50.2]} 7... Nd7 {[%clk 0:02:49.8]} 8. Be3 {[%clk 0:02:47.1]}
8... e5 {[%clk 0:02:44.8]} 9. O-O {[%clk 0:02:42.9]} 9... b6 {[%clk 0:02:38.7]}
10. Qd2 {[%clk 0:02:41.8]} 10... h6 {[%clk 0:02:38.3]} 11. Nh2 {[%clk
0:02:41.1]} 11... Nf8 {[%clk 0:02:38.1]} 12. f4 {[%clk 0:02:34.3]} 12... exf4
{[%clk 0:02:39]} 13. Bxf4 {[%clk 0:02:35]} 13... Ne6 {[%clk 0:02:37.4]} 14. Be3
{[%clk 0:02:31.4]} 14... Nd4 {[%clk 0:02:34]} 15. Nd1 {[%clk 0:02:08.2]} 15...
Be6 {[%clk 0:02:03.4]} 16. Nf2 {[%clk 0:02:06]} 16... Qe7 {[%clk 0:01:29.6]} 17.
Nfg4 {[%clk 0:01:56]} 17... O-O-O {[%clk 0:01:12.6]} 18. c3 {[%clk 0:01:32.7]}
18... f5 {[%clk 0:00:47.7]} 19. Nxh6 {[%clk 0:01:02.1]} 19... fxe4 {[%clk
0:00:39.7]} 20. cxd4 {[%clk 0:00:57.7]} 20... cxd4 {[%clk 0:00:34.4]} 21. Bg5
{[%clk 0:00:57.2]} 21... Bxh6 {[%clk 0:00:30.6]} 22. Bxh6 {[%clk 0:00:48]} 22...
e3 {[%clk 0:00:26.2]} 23. Bxe3 {[%clk 0:00:47.5]} 23... dxe3 {[%clk 0:00:27.1]}
24. Qxe3 {[%clk 0:00:48.4]} 24... Qd6 {[%clk 0:00:21.7]} 25. Rf6 {[%clk
0:00:33.2]} 25... Rhe8 {[%clk 0:00:21.9]} 26. Re1 {[%clk 0:00:27.8]} 26... Kd7
{[%clk 0:00:16.2]} 27. Nf3 {[%clk 0:00:19.7]} 27... Qd5 {[%clk 0:00:15]} 28. Qf4
{[%clk 0:00:14]} 28... Bf5 {[%clk 0:00:13.5]} 29. Re5 {[%clk 0:00:11.7]} 29...
Qxd3 {[%clk 0:00:11.7]} 30. Rxe8 {[%clk 0:00:10.4]} 30... Kxe8 {[%clk 0:00:12]}
31. Qe5+ {[%clk 0:00:09.3]} 31... Kd7 {[%clk 0:00:12.4]} 32. Rf7+ {[%clk
0:00:08.7]} 32... Kc8 {[%clk 0:00:10.5]} 33. Qc7# {[%clk 0:00:08.7]} 1-0

[Event "*** SCC Grand Prix: Titled Tuesday Blitz"]
[Site "Chess.com"]
[Date "2020.09.08"]
[Round "2"]
[White "LuisFSiles"]
[Black "YoreDea"]
[Result "1-0"]
[WhiteElo "2352"]
[BlackElo "2639"]
[TimeControl "180+1"]
[EndTime "10:17:53 PDT"]
[Termination "LuisFSiles won by checkmate"]

1. e4 {[%clk 0:03:00.9]} 1... c5 {[%clk 0:02:08.5]} 2. c3 {[%clk 0:02:59.1]}
2... Nf6 {[%clk 0:02:07.4]} 3. e5 {[%clk 0:02:57.5]} 3... Nd5 {[%clk 0:02:07.5]}
4. Nf3 {[%clk 0:02:58]} 4... Nc6 {[%clk 0:02:06.9]} 5. d4 {[%clk 0:02:57.3]}
5... cxd4 {[%clk 0:02:06.3]} 6. cxd4 {[%clk 0:02:58.2]} 6... d6 {[%clk
0:02:06.7]} 7. Bc4 {[%clk 0:02:57.7]} 7... Nb6 {[%clk 0:02:03.6]} 8. Bb5 {[%clk
0:02:57.8]} 8... dxe5 {[%clk 0:01:54.1]} 9. Nxe5 {[%clk 0:02:58.7]} 9... Bd7
{[%clk 0:01:54.1]} 10. Nxd7 {[%clk 0:02:57.2]} 10... Qxd7 {[%clk 0:01:52.9]} 11.
O-O {[%clk 0:02:54.6]} 11... a6 {[%clk 0:01:52.7]} 12. Bxc6 {[%clk 0:02:47.1]}
12... Qxc6 {[%clk 0:01:52.7]} 13. Nc3 {[%clk 0:02:40.5]} 13... e6 {[%clk
0:01:51]} 14. Re1 {[%clk 0:02:37.5]} 14... Be7 {[%clk 0:01:50.5]} 15. Qg4 {[%clk
0:02:37.6]} 15... O-O {[%clk 0:01:38.1]} 16. Bh6 {[%clk 0:02:36]} 16... Bf6
{[%clk 0:01:38.1]} 17. Rad1 {[%clk 0:02:34]} 17... Kh8 {[%clk 0:01:31.1]} 18.
Ne4 {[%clk 0:02:19.6]} 18... Bxd4 {[%clk 0:01:22.7]} 19. Rxd4 {[%clk 0:02:17.7]}
19... gxh6 {[%clk 0:01:22.9]} 20. Nf6 {[%clk 0:01:50.4]} 20... Qc5 {[%clk
0:01:08.1]} 21. Qe4 {[%clk 0:01:31.6]} 21... Qf5 {[%clk 0:01:01]} 22. Qxf5
{[%clk 0:01:30.3]} 22... exf5 {[%clk 0:01:01.9]} 23. Re7 {[%clk 0:01:26]} 23...
Rac8 {[%clk 0:01:00.3]} 24. g3 {[%clk 0:01:19.4]} 24... Rc2 {[%clk 0:00:49.8]}
25. Rxb7 {[%clk 0:01:15.6]} 25... Rxb2 {[%clk 0:00:42.5]} 26. Rd6 {[%clk
0:00:46.3]} 26... Nc4 {[%clk 0:00:41.7]} 27. Rxb2 {[%clk 0:00:44.5]} 27... Nxb2
{[%clk 0:00:41.7]} 28. Rxa6 {[%clk 0:00:43.6]} 28... Rd8 {[%clk 0:00:38.1]} 29.
a4 {[%clk 0:00:40.5]} 29... Kg7 {[%clk 0:00:20.3]} 30. Nh5+ {[%clk 0:00:40.1]}
30... Kf8 {[%clk 0:00:20.1]} 31. a5 {[%clk 0:00:37.1]} 31... Nc4 {[%clk
0:00:18.3]} 32. Ra7 {[%clk 0:00:35.2]} 32... Rd1+ {[%clk 0:00:12.3]} 33. Kg2
{[%clk 0:00:34.3]} 33... Ra1 {[%clk 0:00:13.2]} 34. a6 {[%clk 0:00:34.2]} 34...
Ra2 {[%clk 0:00:13.5]} 35. Rc7 {[%clk 0:00:26.2]} 35... Ne3+ {[%clk 0:00:12]}
36. Kf3 {[%clk 0:00:26.7]} 36... Nd5 {[%clk 0:00:11.9]} 37. Rd7 {[%clk
0:00:23.4]} 37... Ra3+ {[%clk 0:00:08]} 38. Kg2 {[%clk 0:00:20.4]} 38... Ne7
{[%clk 0:00:07.3]} 39. Rd8# {[%clk 0:00:19.4]} 1-0

[Event "*** SCC Grand Prix: Titled Tuesday Blitz"]
[Site "Chess.com"]
[Date "2020.09.08"]
[Round "2"]
[White "vvg2"]
[Black "dopolian"]
[Result "0-1"]
[WhiteElo "2268"]
[BlackElo "2472"]
[TimeControl "180+1"]
[EndTime "10:17:53 PDT"]
[Termination "dopolian won by resignation"]

1. d4 {[%clk 0:03:00.9]} 1... Nf6 {[%clk 0:03:00.1]} 2. c4 {[%clk 0:02:59.9]}
2... e6 {[%clk 0:03:00.6]} 3. Nf3 {[%clk 0:02:59.9]} 3... d5 {[%clk 0:03:00.4]}
4. Nc3 {[%clk 0:02:59.6]} 4... Be7 {[%clk 0:03:00.4]} 5. Bf4 {[%clk 0:02:59]}
5... O-O {[%clk 0:02:59.9]} 6. e3 {[%clk 0:02:58.6]} 6... c5 {[%clk 0:02:59.5]}
7. dxc5 {[%clk 0:02:55.1]} 7... Bxc5 {[%clk 0:02:57.1]} 8. a3 {[%clk 0:02:53.5]}
8... Nc6 {[%clk 0:02:46.9]} 9. Qc2 {[%clk 0:02:52.1]} 9... Qa5 {[%clk
0:02:42.5]} 10. Rd1 {[%clk 0:02:48.1]} 10... Be7 {[%clk 0:02:40.4]} 11. Be2
{[%clk 0:02:35.2]} 11... Rd8 {[%clk 0:02:24.6]} 12. O-O {[%clk 0:02:30.3]} 12...
dxc4 {[%clk 0:02:15.7]} 13. Bxc4 {[%clk 0:02:28.1]} 13... a6 {[%clk 0:02:09.2]}
14. h3 {[%clk 0:02:21.8]} 14... b5 {[%clk 0:02:05.3]} 15. Ba2 {[%clk 0:02:17]}
15... Bb7 {[%clk 0:02:02.7]} 16. Ng5 {[%clk 0:02:07]} 16... h6 {[%clk
0:01:54.3]} 17. Nge4 {[%clk 0:01:57.8]} 17... Nxe4 {[%clk 0:01:45.2]} 18. Nxe4
{[%clk 0:01:42.4]} 18... Rac8 {[%clk 0:01:40.7]} 19. Rxd8+ {[%clk 0:01:22.9]}
19... Rxd8 {[%clk 0:01:14.7]} 20. Bb1 {[%clk 0:01:08.1]} 20... f5 {[%clk
0:00:59.4]} 21. Nc5 {[%clk 0:01:00.2]} 21... Bxc5 {[%clk 0:00:59.5]} 22. Qxc5
{[%clk 0:01:00]} 22... Rd5 {[%clk 0:00:59.4]} 23. Qc2 {[%clk 0:00:53.8]} 23...
Rd7 {[%clk 0:00:39.6]} 24. Rd1 {[%clk 0:00:40.8]} 24... Qd8 {[%clk 0:00:36.8]}
25. Rxd7 {[%clk 0:00:38.5]} 25... Qxd7 {[%clk 0:00:37.7]} 26. Ba2 {[%clk
0:00:38.3]} 26... Kh7 {[%clk 0:00:33.3]} 27. g4 {[%clk 0:00:33]} 27... Ne7
{[%clk 0:00:28.1]} 28. Kh2 {[%clk 0:00:24]} 28... Bd5 {[%clk 0:00:26.5]} 29. Qd2
{[%clk 0:00:19.6]} 29... Qc6 {[%clk 0:00:23.4]} 30. Bb1 {[%clk 0:00:18.3]} 30...
Bh1 {[%clk 0:00:17]} 31. e4 {[%clk 0:00:09.3]} 31... Bxe4 {[%clk 0:00:16.6]} 32.
Bxe4 {[%clk 0:00:09.3]} 32... Qxe4 {[%clk 0:00:15]} 0-1

[Event "*** SCC Grand Prix: Titled Tuesday Blitz"]
[Site "Chess.com"]
[Date "2020.09.08"]
[Round "2"]
[White "OparinGrigoriy"]
[Black "CHESSMASTER759"]
[Result "0-1"]
[WhiteElo "2939"]
[BlackElo "2596"]
[TimeControl "180+1"]
[EndTime "10:17:55 PDT"]
[Termination "CHESSMASTER759 won by resignation"]

1. Nf3 {[%clk 0:02:58.4]} 1... Nf6 {[%clk 0:02:57.7]} 2. g3 {[%clk 0:02:57]}
2... d5 {[%clk 0:02:55.9]} 3. Bg2 {[%clk 0:02:52.8]} 3... e6 {[%clk 0:02:55.4]}
4. O-O {[%clk 0:02:50]} 4... Be7 {[%clk 0:02:55.9]} 5. d4 {[%clk 0:02:50]} 5...
O-O {[%clk 0:02:54.9]} 6. c4 {[%clk 0:02:50.6]} 6... dxc4 {[%clk 0:02:52.9]} 7.
Qc2 {[%clk 0:02:50.9]} 7... a6 {[%clk 0:02:51.2]} 8. a4 {[%clk 0:02:49.9]} 8...
Nc6 {[%clk 0:02:29.7]} 9. Qxc4 {[%clk 0:02:39.3]} 9... Bd7 {[%clk 0:02:28.8]}
10. Rd1 {[%clk 0:02:03]} 10... b5 {[%clk 0:02:23.9]} 11. axb5 {[%clk 0:01:42.1]}
11... axb5 {[%clk 0:02:24.8]} 12. Rxa8 {[%clk 0:01:42.1]} 12... bxc4 {[%clk
0:02:19.4]} 13. Rxd8 {[%clk 0:01:41.3]} 13... Rxd8 {[%clk 0:02:20.3]} 14. Ne5
{[%clk 0:01:34.8]} 14... Nxe5 {[%clk 0:02:12.8]} 15. dxe5 {[%clk 0:01:35.7]}
15... Ng4 {[%clk 0:02:08.4]} 16. Na3 {[%clk 0:01:27.7]} 16... Bc5 {[%clk
0:02:04.8]} 17. e3 {[%clk 0:00:57.8]} 17... Bxa3 {[%clk 0:01:49.8]} 18. bxa3
{[%clk 0:00:56.9]} 18... Nxe5 {[%clk 0:01:50.7]} 19. Be4 {[%clk 0:00:41.3]}
19... Rb8 {[%clk 0:01:48.1]} 20. f4 {[%clk 0:00:37.7]} 20... Nd3 {[%clk
0:01:42.6]} 21. Bxd3 {[%clk 0:00:37.6]} 21... cxd3 {[%clk 0:01:42.9]} 22. Rxd3
{[%clk 0:00:38.5]} 22... Bc6 {[%clk 0:01:37.8]} 23. Rc3 {[%clk 0:00:38.3]} 23...
Rb6 {[%clk 0:01:34.4]} 24. Rc4 {[%clk 0:00:28.6]} 24... Kf8 {[%clk 0:01:29]} 25.
Bd2 {[%clk 0:00:25.9]} 25... Ke7 {[%clk 0:01:25.5]} 26. Bb4+ {[%clk 0:00:22.6]}
26... Kd7 {[%clk 0:01:23.4]} 27. e4 {[%clk 0:00:23.1]} 27... f5 {[%clk 0:01:21]}
28. exf5 {[%clk 0:00:20.7]} 28... exf5 {[%clk 0:01:20.9]} 29. Kf2 {[%clk
0:00:20.8]} 29... Be4 {[%clk 0:01:16.2]} 30. g4 {[%clk 0:00:19.8]} 30... Rc6
{[%clk 0:01:09.1]} 31. Rd4+ {[%clk 0:00:14.5]} 31... Ke6 {[%clk 0:01:09.3]} 32.
g5 {[%clk 0:00:13.6]} 32... Rc1 {[%clk 0:01:07.1]} 33. h4 {[%clk 0:00:09.5]}
33... c5 {[%clk 0:01:04.7]} 34. Bd2 {[%clk 0:00:09.7]} 34... Rc2 {[%clk
0:00:51.5]} 35. Rxe4+ {[%clk 0:00:04.8]} 35... fxe4 {[%clk 0:00:50.2]} 36. Ke3
{[%clk 0:00:05.7]} 36... Kf5 {[%clk 0:00:45.8]} 37. a4 {[%clk 0:00:03.2]} 37...
c4 {[%clk 0:00:43.9]} 38. a5 {[%clk 0:00:03.7]} 38... c3 {[%clk 0:00:42]} 39.
Be1 {[%clk 0:00:04.1]} 39... Rc1 {[%clk 0:00:40.1]} 40. Ke2 {[%clk 0:00:04.3]}
40... c2 {[%clk 0:00:38.1]} 41. Bd2 {[%clk 0:00:01.7]} 41... Rb1 {[%clk
0:00:36.1]} 42. a6 {[%clk 0:00:01.5]} 42... c1=Q {[%clk 0:00:35.8]} 43. Bxc1
{[%clk 0:00:02]} 43... Rxc1 {[%clk 0:00:35.9]} 44. a7 {[%clk 0:00:02.9]} 44...
Rc8 {[%clk 0:00:35.5]} 0-1

[Event "*** SCC Grand Prix: Titled Tuesday Blitz"]
[Site "Chess.com"]
[Date "2020.09.08"]
[Round "2"]
[White "champ1000"]
[Black "FontVella8"]
[Result "0-1"]
[WhiteElo "2294"]
[BlackElo "2529"]
[TimeControl "180+1"]
[EndTime "10:17:55 PDT"]
[Termination "FontVella8 won on time"]

1. d4 {[%clk 0:02:49.4]} 1... Nf6 {[%clk 0:02:59.8]} 2. c4 {[%clk 0:02:49.1]}
2... e6 {[%clk 0:02:59]} 3. g3 {[%clk 0:02:49.3]} 3... d5 {[%clk 0:02:58.5]} 4.
Bg2 {[%clk 0:02:49.1]} 4... Be7 {[%clk 0:02:58.6]} 5. Nf3 {[%clk 0:02:49]} 5...
O-O {[%clk 0:02:59]} 6. O-O {[%clk 0:02:49.2]} 6... dxc4 {[%clk 0:02:59.2]} 7.
Qc2 {[%clk 0:02:47.4]} 7... c5 {[%clk 0:02:54.9]} 8. dxc5 {[%clk 0:02:37.4]}
8... Na6 {[%clk 0:02:48.7]} 9. Qxc4 {[%clk 0:02:24.6]} 9... Nxc5 {[%clk
0:02:47.3]} 10. Ne5 {[%clk 0:02:22.1]} 10... Qb6 {[%clk 0:02:43.9]} 11. Nc3
{[%clk 0:02:10.2]} 11... Bd7 {[%clk 0:02:26.5]} 12. b4 {[%clk 0:01:39.9]} 12...
Na6 {[%clk 0:02:25.8]} 13. a3 {[%clk 0:00:34.1]} 13... Rac8 {[%clk 0:02:25]} 14.
Qb3 {[%clk 0:00:34.1]} 14... Qd4 {[%clk 0:01:50.2]} 15. Nxd7 {[%clk 0:00:33.4]}
15... Rxc3 {[%clk 0:01:50]} 16. Nxf6+ {[%clk 0:00:27.6]} 16... Bxf6 {[%clk
0:01:49.9]} 17. Qa4 {[%clk 0:00:20.8]} 17... Rc7 {[%clk 0:00:27.9]} 18. Rb1
{[%clk 0:00:16.3]} 18... Nb8 {[%clk 0:00:22.4]} 19. Be3 {[%clk 0:00:14.9]} 19...
Qd6 {[%clk 0:00:20.2]} 20. Qxa7 {[%clk 0:00:11.9]} 20... Nc6 {[%clk 0:00:18.8]}
21. Qb6 {[%clk 0:00:12.1]} 21... Rfc8 {[%clk 0:00:17.1]} 22. Rfd1 {[%clk
0:00:12]} 22... Qe7 {[%clk 0:00:16.5]} 23. Bc5 {[%clk 0:00:10.5]} 23... Qe8
{[%clk 0:00:16.2]} 24. a4 {[%clk 0:00:07.4]} 24... h6 {[%clk 0:00:15.9]} 25. a5
{[%clk 0:00:07.4]} 25... Ne5 {[%clk 0:00:15.6]} 26. Bd6 {[%clk 0:00:06.3]} 26...
Rc2 {[%clk 0:00:11.8]} 27. Bxb7 {[%clk 0:00:02.9]} 27... Nc4 {[%clk 0:00:10.4]}
28. Qa6 {[%clk 0:00:02.2]} 28... Nxd6 {[%clk 0:00:08.8]} 29. Qxd6 {[%clk
0:00:01.4]} 29... Rd8 {[%clk 0:00:08.3]} 0-1